[Event "Titled Tuesday Blitz August 08 Early 2023"]
[White "Bilan, Danila"]
[Black "Shimanov, Aleksandr"]
[WhiteFideId "24161918"]
[BlackFideId "4198603"]
[WhiteElo "2605"]
[BlackElo "2934"]
[Result "0-1"]
[Round "2"]
[TimeControl "180+1"]
[Date "2023.08.08"]
[WhiteClock "0:00:02"]
[BlackClock "0:00:15"]
[Board "28"]

1. d4 {[%clk 0:03:00]}  Nf6 {[%clk 0:02:58]} 2. Nf3 {[%clk 0:03:00]}  e6 {[%clk 0:02:56]} 3. Bg5 {[%clk 0:02:57]}  h6 {[%clk 0:02:53]} 4. Bh4 {[%clk 0:02:55]}  g5 {[%clk 0:02:52]} 5. Bg3 {[%clk 0:02:55]}  d6 {[%clk 0:02:53]} 6. e3 {[%clk 0:02:53]}  Nh5 {[%clk 0:02:52]} 7. Nbd2 {[%clk 0:02:51]}  Bg7 {[%clk 0:02:52]} 8. Bd3 {[%clk 0:02:49]}  Nd7 {[%clk 0:02:52]} 9. c3 {[%clk 0:02:43]}  Qe7 {[%clk 0:02:51]} 10. a4 {[%clk 0:02:39]}  f5 {[%clk 0:02:35]} 11. Ng1 {[%clk 0:02:03]}  Nxg3 {[%clk 0:02:18]} 12. hxg3 {[%clk 0:02:04]}  Nf6 {[%clk 0:02:16]} 13. Ngf3 {[%clk 0:01:59]}  Bd7 {[%clk 0:01:58]} 14. Qc2 {[%clk 0:01:45]}  O-O {[%clk 0:01:50]} 15. O-O {[%clk 0:01:39]}  Qf7 {[%clk 0:01:30]} 16. Rfe1 {[%clk 0:01:32]}  g4 {[%clk 0:01:24]} 17. Nh2 {[%clk 0:01:29]}  d5 {[%clk 0:01:24]} 18. c4 {[%clk 0:01:19]}  c6 {[%clk 0:01:21]} 19. a5 {[%clk 0:01:18]}  h5 {[%clk 0:01:17]} 20. a6 {[%clk 0:01:03]}  b6 {[%clk 0:01:16]} 21. cxd5 {[%clk 0:01:04]}  cxd5 {[%clk 0:01:17]} 22. Rac1 {[%clk 0:00:56]}  Rfc8 {[%clk 0:01:16]} 23. Qb1 {[%clk 0:00:53]}  Bf8 {[%clk 0:01:15]} 24. Rxc8 {[%clk 0:00:52]}  Rxc8 {[%clk 0:01:14]} 25. Rc1 {[%clk 0:00:53]}  Bb4 {[%clk 0:01:14]} 26. Nhf1 {[%clk 0:00:49]}  Ne8 {[%clk 0:01:12]} 27. Rxc8 {[%clk 0:00:33]}  Bxc8 {[%clk 0:01:13]} 28. Qc2 {[%clk 0:00:34]}  Nc7 {[%clk 0:01:04]} 29. Nb1 {[%clk 0:00:28]}  Qd7 {[%clk 0:01:01]} 30. Nc3 {[%clk 0:00:21]}  Qc6 {[%clk 0:00:57]} 31. Qb3 {[%clk 0:00:14]}  Bxc3 {[%clk 0:00:56]} 32. bxc3 {[%clk 0:00:15]}  Kf7 {[%clk 0:00:43]} 33. Nd2 {[%clk 0:00:15]}  b5 {[%clk 0:00:41]} 34. Nb1 {[%clk 0:00:11]}  Qxa6 {[%clk 0:00:38]} 35. Na3 {[%clk 0:00:12]}  Bd7 {[%clk 0:00:39]} 36. Nc2 {[%clk 0:00:12]}  Qb6 {[%clk 0:00:39]} 37. Ne1 {[%clk 0:00:03]}  Ne8 {[%clk 0:00:35]} 38. Bc2 {[%clk 0:00:03]}  Nd6 {[%clk 0:00:36]} 39. Qb1 {[%clk 0:00:03]}  Qc7 {[%clk 0:00:34]} 40. Nd3 {[%clk 0:00:04]}  Qxc3 {[%clk 0:00:32]} 41. Ne5+ {[%clk 0:00:04]}  Ke7 {[%clk 0:00:33]} 42. Bd1 {[%clk 0:00:04]}  a5 {[%clk 0:00:31]} 43. Be2 {[%clk 0:00:04]}  b4 {[%clk 0:00:30]} 44. Qa2 {[%clk 0:00:05]}  b3 {[%clk 0:00:29]} 45. Qa3 {[%clk 0:00:03]}  Qb4 {[%clk 0:00:20]} 46. Qb2 {[%clk 0:00:03]}  a4 {[%clk 0:00:20]} 47. Nd3 {[%clk 0:00:04]}  a3 {[%clk 0:00:17]} 48. Nxb4 {[%clk 0:00:03]}  axb2 {[%clk 0:00:17]} 49. Bd3 {[%clk 0:00:04]}  Nc4 {[%clk 0:00:15]} 50. Bb1 {[%clk 0:00:02]}  Nd2 {[%clk 0:00:15]} 0-1


[Site "https://www.chess.com"]

[Event "Titled Tuesday Blitz August 08 Early 2023"]
[White "Muradli, Mahammad"]
[Black "Sadykov, Ramil"]
[WhiteFideId "13409301"]
[BlackFideId "24113590"]
[WhiteElo "2921"]
[BlackElo "2604"]
[Result "1-0"]
[Round "2"]
[TimeControl "180+1"]
[Date "2023.08.08"]
[WhiteClock "0:00:08"]
[BlackClock "0:00:01"]
[Board "30"]

1. e4 {[%clk 0:03:00]}  e5 {[%clk 0:03:00]} 2. Nf3 {[%clk 0:03:00]}  Nc6 {[%clk 0:02:59]} 3. Bb5 {[%clk 0:03:00]}  Nf6 {[%clk 0:02:59]} 4. d3 {[%clk 0:02:59]}  Bc5 {[%clk 0:02:56]} 5. c3 {[%clk 0:02:59]}  d6 {[%clk 0:02:44]} 6. h3 {[%clk 0:02:54]}  O-O {[%clk 0:02:42]} 7. O-O {[%clk 0:02:55]}  a6 {[%clk 0:02:38]} 8. Ba4 {[%clk 0:02:55]}  Ba7 {[%clk 0:02:30]} 9. Re1 {[%clk 0:02:46]}  Ne7 {[%clk 0:02:26]} 10. d4 {[%clk 0:02:41]}  Ng6 {[%clk 0:02:26]} 11. Nbd2 {[%clk 0:02:41]}  c6 {[%clk 0:02:18]} 12. Bc2 {[%clk 0:02:32]}  Re8 {[%clk 0:02:15]} 13. Nf1 {[%clk 0:02:20]}  Qc7 {[%clk 0:01:52]} 14. Ng3 {[%clk 0:02:16]}  h6 {[%clk 0:01:40]} 15. Be3 {[%clk 0:01:54]}  Be6 {[%clk 0:01:35]} 16. a4 {[%clk 0:01:51]}  a5 {[%clk 0:01:31]} 17. Qd2 {[%clk 0:01:49]}  Rad8 {[%clk 0:01:27]} 18. Rad1 {[%clk 0:01:27]}  Bc8 {[%clk 0:01:18]} 19. dxe5 {[%clk 0:00:51]}  dxe5 {[%clk 0:01:15]} 20. Qc1 {[%clk 0:00:46]}  Bxe3 {[%clk 0:00:59]} 21. Qxe3 {[%clk 0:00:46]}  b6 {[%clk 0:00:57]} 22. Bb3 {[%clk 0:00:40]}  Be6 {[%clk 0:00:51]} 23. Bxe6 {[%clk 0:00:40]}  Rxe6 {[%clk 0:00:47]} 24. Nf5 {[%clk 0:00:36]}  Ree8 {[%clk 0:00:41]} 25. g3 {[%clk 0:00:30]}  Kh7 {[%clk 0:00:39]} 26. h4 {[%clk 0:00:29]}  Ng4 {[%clk 0:00:32]} 27. Qe2 {[%clk 0:00:29]}  Ne7 {[%clk 0:00:26]} 28. Ng5+ {[%clk 0:00:25]}  hxg5 {[%clk 0:00:24]} 29. Qxg4 {[%clk 0:00:26]}  Nxf5 {[%clk 0:00:16]} 30. Qxf5+ {[%clk 0:00:27]}  Kg8 {[%clk 0:00:08]} 31. Qxg5 {[%clk 0:00:22]}  f6 {[%clk 0:00:04]} 32. Qf5 {[%clk 0:00:22]}  b5 {[%clk 0:00:02]} 33. h5 {[%clk 0:00:16]}  Qf7 {[%clk 0:00:01]} 34. axb5 {[%clk 0:00:14]}  cxb5 {[%clk 0:00:01]} 35. Kg2 {[%clk 0:00:14]}  a4 {[%clk 0:00:01]} 36. Rh1 {[%clk 0:00:12]}  Rxd1 {[%clk 0:00:01]} 37. Rxd1 {[%clk 0:00:11]}  Qe7 {[%clk 0:00:02]} 38. h6 {[%clk 0:00:09]}  gxh6 {[%clk 0:00:02]} 39. Rd7 {[%clk 0:00:08]}  Qf8 {[%clk 0:00:01]} 40. Qh7# {[%clk 0:00:08]} 1-0


[Site "https://www.chess.com"]

[Event "Titled Tuesday Blitz August 08 Early 2023"]
[White "Erzhanov, Arman"]
[Black "Zemlyanskii, Ivan"]
[WhiteFideId "4138821"]
[BlackFideId "24249971"]
[WhiteElo "2602"]
[BlackElo "2916"]
[Result "1/2-1/2"]
[Round "2"]
[TimeControl "180+1"]
[Date "2023.08.08"]
[WhiteClock "0:00:20"]
[BlackClock "0:00:10"]
[Board "31"]

1. e4 {[%clk 0:03:00]}  c5 {[%clk 0:02:59]} 2. Nf3 {[%clk 0:03:00]}  e6 {[%clk 0:02:59]} 3. b3 {[%clk 0:03:00]}  Nc6 {[%clk 0:02:59]} 4. Bb5 {[%clk 0:03:00]}  Qf6 {[%clk 0:02:58]} 5. Nc3 {[%clk 0:02:54]}  Nd4 {[%clk 0:02:55]} 6. Be2 {[%clk 0:02:46]}  a6 {[%clk 0:02:41]} 7. O-O {[%clk 0:02:45]}  Ne7 {[%clk 0:02:41]} 8. Bb2 {[%clk 0:02:45]}  Nec6 {[%clk 0:02:41]} 9. Nxd4 {[%clk 0:02:29]}  cxd4 {[%clk 0:02:40]} 10. Na4 {[%clk 0:02:29]}  Qd8 {[%clk 0:02:40]} 11. c4 {[%clk 0:02:18]}  e5 {[%clk 0:02:40]} 12. c5 {[%clk 0:02:16]}  Be7 {[%clk 0:02:36]} 13. Rc1 {[%clk 0:02:09]}  O-O {[%clk 0:02:27]} 14. Nb6 {[%clk 0:02:08]}  Rb8 {[%clk 0:02:26]} 15. Ba3 {[%clk 0:02:03]}  d6 {[%clk 0:02:11]} 16. Nd5 {[%clk 0:01:56]}  dxc5 {[%clk 0:01:27]} 17. Nxe7+ {[%clk 0:01:56]}  Nxe7 {[%clk 0:01:28]} 18. Bxc5 {[%clk 0:01:56]}  Be6 {[%clk 0:01:29]} 19. Bg4 {[%clk 0:01:45]}  Qd7 {[%clk 0:01:26]} 20. Bxe6 {[%clk 0:01:44]}  Qxe6 {[%clk 0:01:27]} 21. d3 {[%clk 0:00:51]}  Rfc8 {[%clk 0:01:20]} 22. Qd2 {[%clk 0:00:51]}  Ng6 {[%clk 0:01:07]} 23. g3 {[%clk 0:00:50]}  h5 {[%clk 0:01:00]} 24. h4 {[%clk 0:00:50]}  Rc6 {[%clk 0:00:51]} 25. Ba3 {[%clk 0:00:41]}  Rbc8 {[%clk 0:00:34]} 26. Rxc6 {[%clk 0:00:41]}  Rxc6 {[%clk 0:00:35]} 27. Rc1 {[%clk 0:00:41]}  Rxc1+ {[%clk 0:00:29]} 28. Qxc1 {[%clk 0:00:42]}  Qg4 {[%clk 0:00:29]} 29. Kf1 {[%clk 0:00:34]}  Qf3 {[%clk 0:00:26]} 30. Qc2 {[%clk 0:00:31]}  Kh7 {[%clk 0:00:19]} 31. Ke1 {[%clk 0:00:30]}  f6 {[%clk 0:00:16]} 32. Qe2 {[%clk 0:00:23]}  Qxe2+ {[%clk 0:00:11]} 33. Kxe2 {[%clk 0:00:23]}  Nf8 {[%clk 0:00:12]} 34. f4 {[%clk 0:00:22]}  Nd7 {[%clk 0:00:09]} 35. Bd6 {[%clk 0:00:22]}  Kg8 {[%clk 0:00:08]} 36. f5 {[%clk 0:00:20]}  Kf7 {[%clk 0:00:08]} 37. a4 {[%clk 0:00:19]}  g6 {[%clk 0:00:08]} 38. Kf3 {[%clk 0:00:18]}  g5 {[%clk 0:00:04]} 39. g4 {[%clk 0:00:16]}  hxg4+ {[%clk 0:00:03]} 40. Kxg4 {[%clk 0:00:17]}  gxh4 {[%clk 0:00:04]} 41. Kxh4 {[%clk 0:00:18]}  Nb6 {[%clk 0:00:04]} 42. Kg4 {[%clk 0:00:17]}  Nc8 {[%clk 0:00:04]} 43. Bc5 {[%clk 0:00:18]}  b6 {[%clk 0:00:04]} 44. Ba3 {[%clk 0:00:18]}  Na7 {[%clk 0:00:04]} 45. Kh5 {[%clk 0:00:18]}  Nc6 {[%clk 0:00:04]} 46. Bd6 {[%clk 0:00:18]}  Na5 {[%clk 0:00:04]} 47. b4 {[%clk 0:00:18]}  Nb3 {[%clk 0:00:04]} 48. b5 {[%clk 0:00:16]}  axb5 {[%clk 0:00:03]} 49. axb5 {[%clk 0:00:17]}  Nc1 {[%clk 0:00:04]} 50. Bc7 {[%clk 0:00:17]}  Nxd3 {[%clk 0:00:03]} 51. Bxb6 {[%clk 0:00:18]}  Ke7 {[%clk 0:00:01]} 52. Ba5 {[%clk 0:00:17]}  Nf4+ {[%clk 0:00:01]} 53. Kh6 {[%clk 0:00:16]}  Kd7 {[%clk 0:00:02]} 54. Kg7 {[%clk 0:00:15]}  Nh5+ {[%clk 0:00:02]} 55. Kg6 {[%clk 0:00:16]}  Ng3 {[%clk 0:00:03]} 56. Kxf6 {[%clk 0:00:16]}  Nxe4+ {[%clk 0:00:03]} 57. Kxe5 {[%clk 0:00:17]}  Nd6 {[%clk 0:00:04]} 58. f6 {[%clk 0:00:17]}  d3 {[%clk 0:00:03]} 59. b6 {[%clk 0:00:16]}  Nc4+ {[%clk 0:00:03]} 60. Kd4 {[%clk 0:00:15]}  Nxa5 {[%clk 0:00:04]} 61. Kxd3 {[%clk 0:00:16]}  Ke6 {[%clk 0:00:04]} 62. Kd4 {[%clk 0:00:16]}  Kxf6 {[%clk 0:00:05]} 63. Kc5 {[%clk 0:00:17]}  Ke7 {[%clk 0:00:05]} 64. Kb5 {[%clk 0:00:18]}  Nb7 {[%clk 0:00:06]} 65. Kc6 {[%clk 0:00:18]}  Nd6 {[%clk 0:00:07]} 66. Kc7 {[%clk 0:00:18]}  Nb5+ {[%clk 0:00:07]} 67. Kc6 {[%clk 0:00:19]}  Nd6 {[%clk 0:00:07]} 68. Kc5 {[%clk 0:00:19]}  Kd7 {[%clk 0:00:08]} 69. Kd5 {[%clk 0:00:20]}  Nb7 {[%clk 0:00:08]} 70. Kc4 {[%clk 0:00:19]}  Kc6 {[%clk 0:00:09]} 71. Kd4 {[%clk 0:00:20]}  Kxb6 {[%clk 0:00:10]} 1/2-1/2


[Site "https://www.chess.com"]

[Event "Titled Tuesday Blitz August 08 Early 2023"]
[White "Jones, Gawain C B"]
[Black "Goldin, Alexander"]
[WhiteFideId "409561"]
[BlackFideId "2019540"]
[WhiteElo "2900"]
[BlackElo "2599"]
[Result "1-0"]
[Round "2"]
[TimeControl "180+1"]
[Date "2023.08.08"]
[WhiteClock "0:00:14"]
[BlackClock "0:00:00"]
[Board "34"]

1. Nf3 {[%clk 0:03:00]}  d5 {[%clk 0:02:59]} 2. c4 {[%clk 0:03:00]}  e6 {[%clk 0:02:58]} 3. g3 {[%clk 0:03:00]}  a6 {[%clk 0:02:56]} 4. b3 {[%clk 0:02:59]}  Nf6 {[%clk 0:02:55]} 5. Bg2 {[%clk 0:02:59]}  b5 {[%clk 0:02:52]} 6. cxd5 {[%clk 0:02:55]}  exd5 {[%clk 0:02:52]} 7. O-O {[%clk 0:02:54]}  c5 {[%clk 0:02:52]} 8. d4 {[%clk 0:02:51]}  Be6 {[%clk 0:02:40]} 9. a4 {[%clk 0:02:47]}  b4 {[%clk 0:02:40]} 10. dxc5 {[%clk 0:02:45]}  Bxc5 {[%clk 0:02:39]} 11. Nd4 {[%clk 0:02:46]}  Nbd7 {[%clk 0:02:37]} 12. Bb2 {[%clk 0:02:43]}  O-O {[%clk 0:02:36]} 13. Nd2 {[%clk 0:02:42]}  Rc8 {[%clk 0:02:36]} 14. h3 {[%clk 0:02:41]}  Qb6 {[%clk 0:02:36]} 15. N2f3 {[%clk 0:02:40]}  Ne4 {[%clk 0:02:35]} 16. e3 {[%clk 0:02:36]}  Be7 {[%clk 0:02:20]} 17. a5 {[%clk 0:02:30]}  Qb8 {[%clk 0:02:13]} 18. Nxe6 {[%clk 0:02:29]}  fxe6 {[%clk 0:02:12]} 19. Nd4 {[%clk 0:02:29]}  Ndc5 {[%clk 0:01:39]} 20. Bxe4 {[%clk 0:02:23]}  dxe4 {[%clk 0:01:39]} 21. Qg4 {[%clk 0:02:14]}  Rf6 {[%clk 0:01:37]} 22. Rac1 {[%clk 0:01:41]}  Rg6 {[%clk 0:01:37]} 23. Qh5 {[%clk 0:01:20]}  Rg5 {[%clk 0:01:03]} 24. Qe2 {[%clk 0:01:19]}  e5 {[%clk 0:00:57]} 25. Qc4+ {[%clk 0:01:16]}  Kh8 {[%clk 0:00:54]} 26. Ne6 {[%clk 0:01:14]}  Rg6 {[%clk 0:00:52]} 27. Nxc5 {[%clk 0:01:11]}  Rxc5 {[%clk 0:00:26]} 28. Qxe4 {[%clk 0:01:11]}  Rxa5 {[%clk 0:00:26]} 29. Rfd1 {[%clk 0:01:06]}  Rf6 {[%clk 0:00:21]} 30. Rd7 {[%clk 0:00:58]}  Qf8 {[%clk 0:00:18]} 31. Bxe5 {[%clk 0:00:46]}  Rf7 {[%clk 0:00:06]} 32. Rdc7 {[%clk 0:00:35]}  Ra2 {[%clk 0:00:04]} 33. Rc8 {[%clk 0:00:34]}  Bd8 {[%clk 0:00:04]} 34. Bf4 {[%clk 0:00:28]}  Rd7 {[%clk 0:00:03]} 35. R1c2 {[%clk 0:00:17]}  Ra1+ {[%clk 0:00:02]} 36. Rc1 {[%clk 0:00:16]}  Ra2 {[%clk 0:00:02]} 37. R8c2 {[%clk 0:00:16]}  Rxc2 {[%clk 0:00:02]} 38. Rxc2 {[%clk 0:00:17]}  a5 {[%clk 0:00:02]} 39. Kg2 {[%clk 0:00:17]}  h6 {[%clk 0:00:03]} 40. Rc8 {[%clk 0:00:17]}  Re7 {[%clk 0:00:02]} 41. Qd5 {[%clk 0:00:16]}  Re8 {[%clk 0:00:02]} 42. Qd7 {[%clk 0:00:14]}  Kh7 {[%clk 0:00:02]} 43. Bc7 {[%clk 0:00:14]}  Re7 {[%clk 0:00:02]} 44. Qd3+ {[%clk 0:00:13]}  Kh8 {[%clk 0:00:02]} 45. Rxd8 {[%clk 0:00:13]}  Re8 {[%clk 0:00:02]} 46. Bxa5 {[%clk 0:00:14]}  Qe7 {[%clk 0:00:01]} 47. Rxe8+ {[%clk 0:00:14]}  Qxe8 {[%clk 0:00:00]} 48. Qd8 {[%clk 0:00:14]} 1-0


[Site "https://www.chess.com"]

[Event "Titled Tuesday Blitz August 08 Early 2023"]
[White "Andreev, Konstantin"]
[Black "Vokhidov, Shamsiddin"]
[WhiteFideId "24239305"]
[BlackFideId "14204223"]
[WhiteElo "2595"]
[BlackElo "2899"]
[Result "0-1"]
[Round "2"]
[TimeControl "180+1"]
[Date "2023.08.08"]
[WhiteClock "0:00:01"]
[BlackClock "0:01:39"]
[Board "35"]

1. e4 {[%clk 0:03:00]}  Nf6 {[%clk 0:03:00]} 2. e5 {[%clk 0:02:59]}  Nd5 {[%clk 0:03:01]} 3. d4 {[%clk 0:02:59]}  d6 {[%clk 0:03:01]} 4. c4 {[%clk 0:03:00]}  Nb6 {[%clk 0:03:01]} 5. exd6 {[%clk 0:03:00]}  exd6 {[%clk 0:03:02]} 6. Nc3 {[%clk 0:02:58]}  Be7 {[%clk 0:03:03]} 7. Bd3 {[%clk 0:02:58]}  Nc6 {[%clk 0:03:04]} 8. Nge2 {[%clk 0:02:57]}  O-O {[%clk 0:03:04]} 9. O-O {[%clk 0:02:57]}  Bf6 {[%clk 0:03:04]} 10. Be3 {[%clk 0:02:56]}  Nb4 {[%clk 0:03:04]} 11. a3 {[%clk 0:02:52]}  Nxd3 {[%clk 0:03:04]} 12. Qxd3 {[%clk 0:02:52]}  d5 {[%clk 0:03:02]} 13. c5 {[%clk 0:02:46]}  Nc4 {[%clk 0:03:01]} 14. Bc1 {[%clk 0:02:46]}  b6 {[%clk 0:02:48]} 15. b3 {[%clk 0:02:43]}  Na5 {[%clk 0:02:48]} 16. b4 {[%clk 0:02:30]}  Nc4 {[%clk 0:02:48]} 17. Nf4 {[%clk 0:02:03]}  c6 {[%clk 0:02:47]} 18. b5 {[%clk 0:02:02]}  bxc5 {[%clk 0:02:45]} 19. bxc6 {[%clk 0:02:00]}  Bxd4 {[%clk 0:02:43]} 20. Nfxd5 {[%clk 0:01:57]}  Bxc3 {[%clk 0:02:38]} 21. c7 {[%clk 0:01:26]}  Qd7 {[%clk 0:02:35]} 22. Rb1 {[%clk 0:00:48]}  Nb6 {[%clk 0:02:34]} 23. Rxb6 {[%clk 0:00:39]}  axb6 {[%clk 0:02:33]} 24. Bg5 {[%clk 0:00:40]}  f6 {[%clk 0:02:05]} 25. Bf4 {[%clk 0:00:27]}  Be5 {[%clk 0:02:03]} 26. Bxe5 {[%clk 0:00:17]}  fxe5 {[%clk 0:02:04]} 27. Qb3 {[%clk 0:00:18]}  Qe6 {[%clk 0:01:51]} 28. Rd1 {[%clk 0:00:18]}  Kh8 {[%clk 0:01:46]} 29. Qxb6 {[%clk 0:00:13]}  Qf7 {[%clk 0:01:43]} 30. f4 {[%clk 0:00:08]}  Bg4 {[%clk 0:01:41]} 31. Rb1 {[%clk 0:00:01]}  Qxd5 {[%clk 0:01:39]} 0-1


[Site "https://www.chess.com"]

[Event "Titled Tuesday Blitz August 08 Early 2023"]
[White "Jia, Haoxiang"]
[Black "Alekseev, Evgeny"]
[WhiteFideId "8602999"]
[BlackFideId "4138147"]
[WhiteElo "2594"]
[BlackElo "2895"]
[Result "0-1"]
[Round "2"]
[TimeControl "180+1"]
[Date "2023.08.08"]
[WhiteClock "0:00:26"]
[BlackClock "0:00:09"]
[Board "36"]

1. d4 {[%clk 0:03:00]}  Nf6 {[%clk 0:02:55]} 2. Bf4 {[%clk 0:02:59]}  e6 {[%clk 0:02:55]} 3. e3 {[%clk 0:02:59]}  d5 {[%clk 0:02:54]} 4. Nf3 {[%clk 0:02:59]}  c5 {[%clk 0:02:54]} 5. c3 {[%clk 0:03:00]}  Nc6 {[%clk 0:02:55]} 6. Bd3 {[%clk 0:02:57]}  Bd6 {[%clk 0:02:47]} 7. Bg3 {[%clk 0:02:57]}  Qe7 {[%clk 0:02:26]} 8. Ne5 {[%clk 0:02:46]}  Qc7 {[%clk 0:02:14]} 9. f4 {[%clk 0:02:25]}  Ne4 {[%clk 0:01:59]} 10. Bxe4 {[%clk 0:02:22]}  dxe4 {[%clk 0:01:59]} 11. Nd2 {[%clk 0:02:21]}  f5 {[%clk 0:01:56]} 12. O-O {[%clk 0:02:18]}  O-O {[%clk 0:01:54]} 13. Bh4 {[%clk 0:02:11]}  Re8 {[%clk 0:01:36]} 14. Ndc4 {[%clk 0:02:02]}  Bf8 {[%clk 0:01:35]} 15. Nxc6 {[%clk 0:02:00]}  bxc6 {[%clk 0:01:26]} 16. Ne5 {[%clk 0:01:53]}  a5 {[%clk 0:01:24]} 17. g4 {[%clk 0:01:50]}  Rb8 {[%clk 0:00:51]} 18. Rf2 {[%clk 0:01:44]}  Bd6 {[%clk 0:00:40]} 19. Qa4 {[%clk 0:01:32]}  Ba6 {[%clk 0:00:35]} 20. Qxc6 {[%clk 0:01:21]}  Qxc6 {[%clk 0:00:22]} 21. Nxc6 {[%clk 0:01:21]}  Rb6 {[%clk 0:00:22]} 22. Nxa5 {[%clk 0:01:19]}  cxd4 {[%clk 0:00:22]} 23. cxd4 {[%clk 0:01:17]}  Rc8 {[%clk 0:00:22]} 24. gxf5 {[%clk 0:01:12]}  exf5 {[%clk 0:00:21]} 25. Nb3 {[%clk 0:01:11]}  Kf7 {[%clk 0:00:21]} 26. Rc1 {[%clk 0:00:42]}  Rxc1+ {[%clk 0:00:20]} 27. Nxc1 {[%clk 0:00:42]}  Ke6 {[%clk 0:00:19]} 28. Rc2 {[%clk 0:00:42]}  Bd3 {[%clk 0:00:16]} 29. Nxd3 {[%clk 0:00:37]}  exd3 {[%clk 0:00:16]} 30. Rd2 {[%clk 0:00:38]}  Kd5 {[%clk 0:00:16]} 31. Rxd3 {[%clk 0:00:22]}  Rxb2 {[%clk 0:00:16]} 32. Bf2 {[%clk 0:00:20]}  Rxa2 {[%clk 0:00:14]} 33. Rb3 {[%clk 0:00:20]}  Ke4 {[%clk 0:00:14]} 34. Kg2 {[%clk 0:00:20]}  g6 {[%clk 0:00:10]} 35. Rb6 {[%clk 0:00:20]}  Bf8 {[%clk 0:00:08]} 36. Rb8 {[%clk 0:00:19]}  Bd6 {[%clk 0:00:07]} 37. Rd8 {[%clk 0:00:19]}  Bb4 {[%clk 0:00:06]} 38. Re8+ {[%clk 0:00:20]}  Kd3 {[%clk 0:00:06]} 39. Rb8 {[%clk 0:00:18]}  Be1 {[%clk 0:00:06]} 40. d5 {[%clk 0:00:15]}  Bxf2 {[%clk 0:00:05]} 41. Kf3 {[%clk 0:00:15]}  Be1 {[%clk 0:00:04]} 42. Rb3+ {[%clk 0:00:15]}  Bc3 {[%clk 0:00:04]} 43. d6 {[%clk 0:00:15]}  Ra7 {[%clk 0:00:04]} 44. Rb8 {[%clk 0:00:13]}  Rd7 {[%clk 0:00:04]} 45. Rh8 {[%clk 0:00:13]}  Bxh8 {[%clk 0:00:03]} 46. h4 {[%clk 0:00:13]}  Rxd6 {[%clk 0:00:03]} 47. h5 {[%clk 0:00:14]}  Rd7 {[%clk 0:00:04]} 48. h6 {[%clk 0:00:14]}  Re7 {[%clk 0:00:03]} 49. Kg3 {[%clk 0:00:14]}  Rxe3+ {[%clk 0:00:04]} 50. Kh4 {[%clk 0:00:14]}  Re4 {[%clk 0:00:04]} 51. Kg5 {[%clk 0:00:15]}  Ke3 {[%clk 0:00:05]} 52. Kh4 {[%clk 0:00:15]}  Kxf4 {[%clk 0:00:05]} 53. Kh3 {[%clk 0:00:15]}  Kg5 {[%clk 0:00:05]} 54. Kg3 {[%clk 0:00:16]}  Kxh6 {[%clk 0:00:06]} 55. Kf3 {[%clk 0:00:16]}  Kg5 {[%clk 0:00:07]} 56. Kg3 {[%clk 0:00:17]}  Bf6 {[%clk 0:00:07]} 57. Kf3 {[%clk 0:00:18]}  h5 {[%clk 0:00:08]} 58. Kg3 {[%clk 0:00:19]}  h4+ {[%clk 0:00:08]} 59. Kh3 {[%clk 0:00:19]}  Kh5 {[%clk 0:00:09]} 60. Kg2 {[%clk 0:00:20]}  g5 {[%clk 0:00:09]} 61. Kh3 {[%clk 0:00:21]}  g4+ {[%clk 0:00:09]} 62. Kg2 {[%clk 0:00:22]}  Kg5 {[%clk 0:00:09]} 63. Kf2 {[%clk 0:00:23]}  Kf4 {[%clk 0:00:10]} 64. Kg2 {[%clk 0:00:24]}  Re3 {[%clk 0:00:10]} 65. Kf1 {[%clk 0:00:25]}  h3 {[%clk 0:00:10]} 66. Kf2 {[%clk 0:00:26]}  g3+ {[%clk 0:00:10]} 67. Kg1 {[%clk 0:00:26]}  Re1# {[%clk 0:00:09]} 0-1


[Site "https://www.chess.com"]

[Event "Titled Tuesday Blitz August 08 Early 2023"]
[White "Kazakouski, Valery"]
[Black "Heinemann, Josefine"]
[WhiteFideId "13507443"]
[BlackFideId "12900460"]
[WhiteElo "2892"]
[BlackElo "2593"]
[Result "1-0"]
[Round "2"]
[TimeControl "180+1"]
[Date "2023.08.08"]
[WhiteClock "0:00:11"]
[BlackClock "0:00:03"]
[Board "37"]

1. Nf3 {[%clk 0:03:00]}  d5 {[%clk 0:02:55]} 2. c4 {[%clk 0:03:00]}  e6 {[%clk 0:02:51]} 3. b3 {[%clk 0:02:59]}  Nf6 {[%clk 0:02:50]} 4. g3 {[%clk 0:02:59]}  c5 {[%clk 0:02:47]} 5. e3 {[%clk 0:02:59]}  Nc6 {[%clk 0:02:46]} 6. Bg2 {[%clk 0:03:00]}  d4 {[%clk 0:02:46]} 7. exd4 {[%clk 0:03:01]}  cxd4 {[%clk 0:02:46]} 8. O-O {[%clk 0:03:00]}  Be7 {[%clk 0:02:43]} 9. Re1 {[%clk 0:02:59]}  O-O {[%clk 0:02:44]} 10. Bb2 {[%clk 0:03:00]}  Re8 {[%clk 0:02:40]} 11. Na3 {[%clk 0:02:58]}  Bc5 {[%clk 0:02:37]} 12. d3 {[%clk 0:02:46]}  e5 {[%clk 0:02:33]} 13. Nc2 {[%clk 0:02:46]}  a5 {[%clk 0:02:33]} 14. a3 {[%clk 0:02:39]}  Bg4 {[%clk 0:02:30]} 15. h3 {[%clk 0:02:38]}  Bh5 {[%clk 0:02:30]} 16. g4 {[%clk 0:02:14]}  Bg6 {[%clk 0:02:29]} 17. b4 {[%clk 0:02:11]}  axb4 {[%clk 0:02:28]} 18. axb4 {[%clk 0:02:10]}  Rxa1 {[%clk 0:02:25]} 19. Bxa1 {[%clk 0:02:07]}  Bd6 {[%clk 0:01:42]} 20. b5 {[%clk 0:01:53]}  Nb8 {[%clk 0:01:32]} 21. Nh4 {[%clk 0:01:51]}  b6 {[%clk 0:01:27]} 22. Nxg6 {[%clk 0:01:30]}  hxg6 {[%clk 0:01:26]} 23. Qe2 {[%clk 0:01:31]}  Nbd7 {[%clk 0:01:23]} 24. Bc6 {[%clk 0:01:28]}  Re7 {[%clk 0:01:22]} 25. Bb2 {[%clk 0:01:21]}  Nc5 {[%clk 0:01:07]} 26. Ra1 {[%clk 0:01:17]}  Kh7 {[%clk 0:01:07]} 27. Ra8 {[%clk 0:01:12]}  Qc7 {[%clk 0:01:07]} 28. Nb4 {[%clk 0:00:34]}  e4 {[%clk 0:01:02]} 29. dxe4 {[%clk 0:00:32]}  Ncxe4 {[%clk 0:00:51]} 30. Na6 {[%clk 0:00:31]}  Bh2+ {[%clk 0:00:51]} 31. Kg2 {[%clk 0:00:30]}  Qf4 {[%clk 0:00:51]} 32. Bxd4 {[%clk 0:00:19]}  Re6 {[%clk 0:00:15]} 33. Be3 {[%clk 0:00:19]}  Qe5 {[%clk 0:00:14]} 34. Nb4 {[%clk 0:00:16]}  Nc3 {[%clk 0:00:12]} 35. Qf3 {[%clk 0:00:15]}  Nfe4 {[%clk 0:00:10]} 36. Nd3 {[%clk 0:00:14]}  Qc7 {[%clk 0:00:08]} 37. Nf4 {[%clk 0:00:11]}  Bxf4 {[%clk 0:00:08]} 38. Qxf4 {[%clk 0:00:12]}  Qxf4 {[%clk 0:00:08]} 39. Bxf4 {[%clk 0:00:13]}  Ne2 {[%clk 0:00:07]} 40. Be3 {[%clk 0:00:13]}  Nf6 {[%clk 0:00:07]} 41. Bf3 {[%clk 0:00:11]}  Nc3 {[%clk 0:00:06]} 42. Rb8 {[%clk 0:00:11]}  Nce4 {[%clk 0:00:06]} 43. Rxb6 {[%clk 0:00:10]}  Rxb6 {[%clk 0:00:03]} 44. Bxb6 {[%clk 0:00:11]} 1-0


[Site "https://www.chess.com"]